Cogmind - Beta 16 @@@ ROGUE MODE // 2025.11.06 @ 21:53:48 Player: StaticNoob Result: Destroyed by G-47 Trooper with Particle Gun Performance ------------- Evolutions (2) 1000 Regions Visited (4) 800 Robots Destroyed (81) 405 Value Destroyed (2467) 2467 Prototype IDs (3) 60 Alien Tech Used (0) 0 Bonus (200) 200 TOTAL SCORE: 4932 Bonus ------- Entered Garrisons 200 Cogmind --------- Core Integrity 0/550 Matter 300/300 Energy 132/160 System Corruption 2% Temperature Cool (86) Movement Treading (250) Ox1 Location -8/Garrison Parts ------- > --- POWER (1) -------- Light Nuclear Core > --- PROPULSION (4) --- Armored Treads Armored Treads > --- UTILITY (4) ------ Improved Heat Sink High-capacity Storage Unit Hacking Suite > --- WEAPON (2) ------- Beam Rifle Precision Beam Rifle > --- INVENTORY (20) --- Light Treads Light Treads Light Treads Improved Treads Armored Treads Cryofiber Web Large Storage Unit High-capacity Storage Unit High-capacity Matter Pod (200) Hacking Suite Hacking Suite Hacking Suite Particle Gun Particle Gun Remote Datajack Peak State ------------ > --- POWER ------------ Light Nuclear Core > --- PROPULSION ------- Armored Treads Armored Treads Wheel Compact Wheel > --- UTILITY ---------- Improved Heat Sink Improved Heat Sink High-capacity Storage Unit Hacking Suite > --- WEAPON ----------- Beam Rifle Precision Beam Rifle > --- INVENTORY -------- Light Treads Light Treads Light Treads Improved Treads Armored Treads Cryofiber Web Large Storage Unit High-capacity Storage Unit High-capacity Matter Pod Hacking Suite Hacking Suite Hacking Suite Particle Gun Particle Gun Remote Datajack [Rating: 30] Favorites ----------- Power Ion Engine Engine Ion Engine Power Core Nuclear Core Propulsion Light Treads Treads Light Treads Wheel Compact Wheel Flight Unit Cesium-ion Thruster Utility Large Storage Unit Device Seismic Detector Storage Large Storage Unit Processor Improved Signal Interpreter Hackware Hacking Suite Protection Light Armor Plating Weapon Autogun Energy Gun Precision Beam Rifle Energy Cannon Heavy Ion Cannon Ballistic Gun Autogun Ballistic Cannon Light Cannon Launcher Grenade Launcher Build | -11 -10 -10 -8 -8 ------- Run | Yrd Mat Sub Mat Gar Slots Evolved 4 | . . . 4 . Power . | . . . . . Propulsion 2 | . . . 2 . Utility 2 | . . . 2 . Weapon . | . . . . . Parts Attached 63 | 8 6 7 40 2 Power 8 | 1 1 1 4 1 Engine 6 | 1 1 1 3 . Core 2 | . . . 1 1 Reactor . | . . . . . Propulsion 22 | 2 1 2 17 . Treads 16 | 2 1 2 11 . Leg . | . . . . . Wheel 5 | . . . 5 . Hover . | . . . . . Flight 1 | . . . 1 . Utility 15 | 2 2 . 10 1 Device 7 | 1 1 . 4 1 Storage 4 | 1 1 . 2 . Processor 2 | . . . 2 . Hackware 1 | . . . 1 . Protection 1 | . . . 1 . Artifact . | . . . . . Weapon 18 | 3 2 4 9 . Energy Gun 3 | 1 . . 2 . Energy Cannon 2 | . . . 2 . Ballistic Gun 6 | 2 2 1 1 . Ballistic Cannon 6 | . . 2 4 . Launcher 1 | . . 1 . . Special Weapon . | . . . . . Impact Weapon . | . . . . . Slashing Weapon . | . . . . . Piercing Weapon . | . . . . . Special Melee Weapon . | . . . . . Unidentified Prototypes . | . . . . . Parts Lost 37 | . 2 7 24 4 Power 5 | . . 1 4 . Propulsion 15 | . 1 2 10 2 Utility 5 | . . . 3 2 Weapon 12 | . 1 4 7 . Highest Loss Streak 7 | . 1 7 6 3 To Critical Strikes . | . . . . . Average Backups 9 | . 8 11 10 15 Power . | . 1 . . . Propulsion 1 | . 1 2 1 5 Utility 3 | . 1 3 4 7 Weapon 3 | . 3 4 3 2 Tool/Special . | . . . . . Unused Backups 15 | . 1 . 4 10 Power 1 | . . . 1 . Propulsion 3 | . . . 1 2 Utility 7 | . 1 . 1 5 Weapon 3 | . . . 1 2 Tool/Special 1 | . . . . 1 Average Slot Usage (%) 93 | . 99 95 88 97 Engine 9 | . 14 12 5 2 Core 1 | . . . 2 6 Treads 22 | . 27 25 18 18 Wheel 6 | . . . 10 17 Device 12 | . 13 14 10 14 Storage 11 | . 14 14 9 9 Processor 2 | . . . 5 . Hackware 3 | . . . 6 9 Energy Gun 1 | . . . . 18 Energy Cannon 2 | . . . 5 . Ballistic Gun 12 | . 28 14 1 . Ballistic Cannon 5 | . . 12 9 . Peak Build Rating 30 | 9 12 9 28 30 Average Rating 15 | 5 9 8 19 28 On Entrance 11 | . 9 9 9 28 Avg Prop Armor Cover (%) 14 | . . . 13 20 Naked Turns . | . . . . . Heaviest Build 57 | 15 31 31 57 54 Greatest Support 80 | 40 40 40 80 26 Greatest Overweight (x) 4 | . . 1 4 2 Average Overweight (x) . | . . . 1 1 Largest Inventory Capacity 20 | 8 15 15 20 20 Average Capacity 14 | 7 12 15 16 20 Most Carried 17 | 1 15 15 17 17 Average Carried 9 | . 8 11 10 15 Final Capacity 20 | 8 15 15 20 20 Final Carried 17 | 1 15 13 17 15 Class Distribution -------------------- 87% | Mutant 12% | Scavenger-Mutant Dominant Class ---------------- Mutant | -10/Materials Mutant | -10/Subcaves Mutant | -8/Materials Scavenger-Mutant | -8/Garrison Resources | -11 -10 -10 -8 -8 ----------- Run | Yrd Mat Sub Mat Gar Matter Collected 2521 | 136 799 141 1379 66 Remotely . | . . . . . Salvage Created 2706 | 53 923 112 1317 301 Parts 148 | 11 59 4 60 14 Haulers Intercepted 4 | . 2 . 2 . Recyclers Shooed . | . . . . . Parts Field Recycled . | . . . . . Retrieved Matter . | . . . . . Parts Self-Destructed 4 | . . 4 . . Prevented . | . . . . . Parts Restored . | . . . . . Kills | -11 -10 -10 -8 -8 ------- Run | Yrd Mat Sub Mat Gar Combat Hostiles Destroyed 62 | . 17 5 33 7 Guns 29 | . 17 1 5 6 Cannons 28 | . . 3 25 . AOE 1 | . . 1 . . Classes Destroyed 14 | 1 6 2 4 1 Worker 1 | . 1 . . . Builder 4 | . 2 . 2 . Tunneler 3 | 3 . . . . Hauler 4 | . 2 . 2 . Watcher 7 | . 3 . 4 . Swarmer 11 | . 2 2 7 . Cutter 2 | . . . . 2 Grunt 33 | . 15 . 14 4 Brawler 2 | . . . 1 1 Duelist 1 | . . . 1 . Sentry 9 | . . 1 8 . Hunter 1 | . . . 1 . Heavy 1 | . . . 1 . Subdweller 2 | . . 2 . . Best Kill Streak 7 | 3 7 4 7 4 Combat Bots Only 6 | . 4 4 6 4 Max Kills in Single Turn 2 | 1 2 1 1 1 Gunslinging 1 | . 1 . . . Exploded 1 | . . 1 . . Melee . | . . . . . Uniques/NPCs Destroyed . | . . . . . Combat | -11 -10 -10 -8 -8 -------- Run | Yrd Mat Sub Mat Gar Hostile Shots Fired 467 | . 92 56 272 47 Missed 123 | . 24 16 71 12 Hits 344 | . 68 40 201 35 Melee 10 | . . . 1 9 Projectile 334 | . 68 40 200 26 AOE 2 | . . . . 2 Critical Strikes 12 | . . 1 9 2 Damage Taken 5158 | . 802 603 3200 553 Core 730 | . 79 89 460 102 Absorbed by Shields 63 | . . . . 63 Core Remaining (%) 66 | 100 . 32 . . Volleys Fired 284 | 9 75 14 159 27 Largest 2 | 2 2 2 2 2 Hottest 121 | 40 46 60 121 117 Shots Fired 547 | 18 148 27 300 54 Gun 274 | 18 148 12 42 54 Cannon 271 | . . 13 258 . Launcher 2 | . . 2 . . Special . | . . . . . Kinetic 395 | 18 148 25 204 . Thermal 150 | . . . 96 54 Explosive 2 | . . 2 . . Electromagnetic . | . . . . . Robot Hit Streak 19 | 4 14 8 19 16 Robot Miss Streak 6 | 2 5 2 6 3 Penetration Max . | . . . . . Secondary Targets 5 | . 4 . 1 . Max Gunslinging Chain 1 | . 1 . 1 . Shots Hit Robots 355 | 9 94 21 188 43 Core Hits 124 | 3 35 6 65 15 Critical Kills 3 | . . . 3 . Critical Parts Destroyed 1 | . . . 1 . Critical Strikes 13 | . . 1 9 3 Burn 3 | . . . . 3 Meltdown 3 | . . . 3 . Destroy 1 | . . . 1 . Blast 6 | . . 1 5 . Melee Attacks . | . . . . . Impact . | . . . . . Slashing . | . . . . . Piercing . | . . . . . Sneak Attacks . | . . . . . Combat Hostiles . | . . . . . Follow-up Attacks . | . . . . . Damage Inflicted 6556 | 122 1384 425 3910 715 Guns 2786 | 122 1383 116 450 715 Cannons 3633 | . . 176 3457 . Explosions 133 | . . 133 . . Melee . | . . . . . Ramming 4 | . 1 . 3 . Kinetic 4286 | 122 1383 292 2489 . Thermal 2133 | . . . 1418 715 Explosive 133 | . . 133 . . Electromagnetic . | . . . . . Impact . | . . . . . Slashing . | . . . . . Piercing . | . . . . . Highest Corruption 2 | . . . . 2 Average Corruption 2 | . . . . 2 Corruption Purged . | . . . . . Corruption Blocked . | . . . . . Overload Shots . | . . . . . Overflow Damage 54 | . . 3 51 . Projectiles 51 | . . . 51 . Explosions 3 | . . 3 . . Melee . | . . . . . Knockbacks 24 | . . 2 22 . Impact . | . . . . . Kinetic 24 | . . 2 22 . Secondary . | . . . . . Self-Inflicted Damage 25 | . . 25 . . Shots 2 | . . 2 . . Rammed 3 | . 1 . 2 . Targets Rammed 3 | . 1 . 2 . Kicked . | . . . . . Crushed . | . . . . . Highest Temperature 285 | . 30 . 285 77 Average Temperature 53 | . 6 . 70 40 Received Heat Transfer 2085 | . 366 99 1440 180 Siege Activations . | . . . . . Martial Activations . | . . . . . Shielding Activations . | . . . . . Robots Disrupted . | . . . . . Combat Hostiles . | . . . . . Robots Corrupted . | . . . . . Combat Hostiles . | . . . . . Parts Fried . | . . . . . Impact Corruptions . | . . . . . Robots Melted 4 | . . . 3 1 Combat Hostiles 4 | . . . 3 1 Parts Melted 11 | . . . 6 5 Heat Transferred 4403 | . . . 2516 1887 Parts Sabotaged . | . . . . . Parts Stolen . | . . . . . Parts Stripped . | . . . . . Power Chain Reactions . | . . . . . Alert | -11 -10 -10 -8 -8 ------- Run | Yrd Mat Sub Mat Gar Maximum Alert Level 1 | . 1 . 1 1 Low Security (%) 87 | 100 86 . 94 31 Level 1 12 | . 13 . 5 68 Level 2 . | . . . . . Level 3 . | . . . . . Level 4 . | . . . . . Level 5 . | . . . . . High Security . | . . . . . Max Security . | . . . . . Peak Influence 299 | 10 237 . 218 299 Initial 139 | . . . . 139 Average 95 | . 112 . 69 231 Influence Increases 1861 | 15 509 70 1067 200 Destroy 0b10 Robot/C 1200 | . 340 60 660 140 Destroy 0b10 Robot/NC 95 | 15 40 . 40 . Destroy Leader 312 | . 100 10 172 30 Successful Hack 32 | . 11 . 21 . Disable Machine 30 | . . . 30 . Destroy Structure 27 | . 3 . 24 . Lose Combat Pursuer 165 | . 15 . 120 30 Influence Decreases 1562 | 15 415 164 853 115 Entered New Map 121 | . . 46 . 75 Time Decay 973 | 15 395 80 483 . Lost Part 318 | . 20 38 220 40 Purge Threat 150 | . . . 150 . Squads Dispatched 11 | . 6 . 5 . Investigation 5 | . 4 . 1 . Extermination . | . . . . . Reinforcement 5 | . 2 . 3 . Assault . | . . . . . Garrison 1 | . . . 1 . Intercept . | . . . . . Searches Triggered . | . . . . . Construction Impeded . | . . . . . Haulers Reinforced . | . . . . . Active Scanning Responses . | . . . . . Cargo Convoy Interrupts . | . . . . . Stealth | -11 -10 -10 -8 -8 --------- Run | Yrd Mat Sub Mat Gar Distress Signals 8 | . 1 . 7 . Communications Jammed . | . . . . . Distress Signals . | . . . . . Times Spotted 98 | . 30 6 53 9 Peak Tracking Total 7 | . 6 5 7 4 Tactical Retreats 9 | . 1 . 7 1 Traps | -11 -10 -10 -8 -8 ------- Run | Yrd Mat Sub Mat Gar Traps Triggered 11 | . 6 . 2 3 Indirectly . | . . . . . Trap Hack Attempts . | . . . . . Triggered . | . . . . . Disarmed . | . . . . . Reprogrammed . | . . . . . Reused . | . . . . . Traps Extracted . | . . . . . Installed . | . . . . . Triggered . | . . . . . Machines | -11 -10 -10 -8 -8 ---------- Run | Yrd Mat Sub Mat Gar Machines Disabled 3 | . 1 . 2 . Max in Single Turn 1 | . 1 . 1 . Machines Repaired . | . . . . . Machines Dismantled . | . . . . . Machines Sabotaged . | . . . . . Overloaded Fab Kills . | . . . . . Hacking | -11 -10 -10 -8 -8 --------- Run | Yrd Mat Sub Mat Gar Machines Accessed 15 | . 5 . 10 . Terminals 13 | . 5 . 8 . Fabricators . | . . . . . Repair Stations . | . . . . . Recycling Units . | . . . . . Scanalyzers 1 | . . . 1 . Garrison Access 1 | . . . 1 . Total Hacks 47 | . 14 . 33 . Successful 23 | . 7 . 16 . Failed 23 | . 7 . 16 . Catastrophic 4 | . . . 4 . Database Lockouts 1 | . . . 1 . Manual 29 | . 12 . 17 . Terminals 45 | . 14 . 31 . Fabricators . | . . . . . Repair Stations . | . . . . . Recycling Units . | . . . . . Scanalyzers 1 | . . . 1 . Garrison Access 1 | . . . 1 . Terminal Hacks 10 | . 2 . 8 . Robot Analysis 1 | . . . 1 . Prototype ID Bank 1 | . . . 1 . Branch Access Points 2 | . 1 . 1 . Unreport Threat 1 | . . . 1 . Locate Traps 2 | . . . 2 . Recall Reinforcements 1 | . . . 1 . Hauler Manifests 1 | . . . 1 . Zone Layout 1 | . 1 . . . Fabricator Hacks . | . . . . . Repair Station Hacks . | . . . . . Recycling Unit Hacks . | . . . . . Scanalyzer 1 | . . . 1 . Insert Component 1 | . . . 1 . Garrison Access Hacks 1 | . . . 1 . Unlock Access 1 | . . . 1 . Unauthorized Hacks 11 | . 5 . 6 . Terminals 11 | . 5 . 6 . Botnet 2 | . 1 . 1 . Operators 1 | . 1 . . . Skim 8 | . 3 . 5 . Fabricators . | . . . . . Repair Stations . | . . . . . Recycling Units . | . . . . . Scanalyzers . | . . . . . Garrison Access . | . . . . . Data Cores Recovered . | . . . . . Used . | . . . . . Hacking Detections 13 | . 5 . 8 . Full Trace Events . | . . . . . Feedback Events . | . . . . . Feedback Blocked . | . . . . . Robot Schematics Acquired . | . . . . . Robots Built . | . . . . . Authchips . | . . . . . Time . | . . . . . Total Robot Build Rating . | . . . . . Part Schematics Acquired . | . . . . . Parts Built . | . . . . . Authchips . | . . . . . Time . | . . . . . Total Part Build Rating . | . . . . . Part Studies Acquired . | . . . . . Parts Repaired . | . . . . . Time . | . . . . . Parts Recycled . | . . . . . Recycled Matter . | . . . . . Retrieved Matter . | . . . . . Retrieved Components . | . . . . . Parts Scanalyzed . | . . . . . Part Schematics Acquired . | . . . . . Parts Damaged . | . . . . . Bothacking | -11 -10 -10 -8 -8 ------------ Run | Yrd Mat Sub Mat Gar Used RIF Installer . | . . . . . Robots Hacked . | . . . . . Non-combat . | . . . . . Combat . | . . . . . Robot Hacks Applied . | . . . . . Relay Couplers Released . | . . . . . Fabnet Peak Effective % . | . . . . . Robots Rewired . | . . . . . Allies Hacked . | . . . . . Hacks Repelled . | . . . . . Allies | -11 -10 -10 -8 -8 -------- Run | Yrd Mat Sub Mat Gar Total Allies . | . . . . . Largest Group . | . . . . . Highest-Rated Group . | . . . . . Highest-Rated Ally . | . . . . . Total Orders . | . . . . . Ally Attacks . | . . . . . Total Damage . | . . . . . Kills . | . . . . . Allies Corrupted . | . . . . . Allies Melted . | . . . . . Intel | -11 -10 -10 -8 -8 ------- Run | Yrd Mat Sub Mat Gar Active Infowar (turns) 2717 | 5 1532 350 830 . Sensors 372 | . . . 372 . Terrain 393 | 5 388 . . . Seismic 1952 | . 1144 350 458 . Robot Analysis Total 1 | . . . 1 . Derelict Logs Recovered 1 | . . 1 . . Drone Launches . | . . . . . Drone Recoveries . | . . . . . Exploration | -11 -10 -10 -8 -8 ------------- Run | Yrd Mat Sub Mat Gar Turns Passed 4010 | 90 1533 350 1830 207 Spaces Moved 1997 | 33 795 171 912 86 Core 2 | 2 . . . . Treads 1208 | 31 795 171 211 . Legs . | . . . . . Wheels 787 | . . . 701 86 Hover . | . . . . . Flight . | . . . . . Fastest Speed 50 | 50 160 160 110 105 Average Speed 145 | 153 160 160 132 109 Slowest Speed 245 | 160 160 240 245 120 Overloaded Moves . | . . . . . Propulsion Burnouts . | . . . . . Robots Hopped . | . . . . . Potential Cave-ins . | . . . . . Cave-ins Triggered . | . . . . . Exploration Rate (%) 44 | 5 98 14 86 17 Regions Visited 4 Branch Regions 1 Pre-discovered Areas 1 | . . 1 . . Known Exits Taken 1 | . . . 1 . Unknown Exits Taken 3 | 1 1 1 . . Scrap Searched . | . . . . . Spaces Dug 1 | . . . 1 . Terrain Destroyed 23 | . . 3 20 . Melee . | . . . . . Projectile 20 | . . . 20 . AOE 3 | . . 3 . . Terrain Rammed . | . . . . . Walls Destroyed . | . . . . . Machines Disabled . | . . . . . Actions | -11 -10 -10 -8 -8 --------- Run | Yrd Mat Sub Mat Gar Total 2583 | 51 928 222 1235 147 Wait 151 | . 30 26 82 13 Move 1994 | 32 794 170 912 86 Hop . | . . . . . Pick Up 46 | 1 16 5 24 . Fast Attach 24 | 8 1 . 15 . Attach 32 | . 2 7 21 2 Detach 1 | . . . 1 . Swap 11 | . 4 . 7 . Drop 18 | 1 5 . 12 . Fire 284 | 9 75 14 159 27 Melee . | . . . . . Ram . | . . . . . Kick . | . . . . . Crush 3 | . 1 . 2 . Escape Stasis 19 | . . . . 19 Rewire . | . . . . . Trap . | . . . . . Miscellaneous . | . . . . . Route ------- -11/Scrapyard -10/Materials (discovered 6 exits: [*Mat x3] / *Min x2 / [*Sub]) -10/Subcaves -8/Materials (discovered 4 exits: *Fac x3 / Gar) -8/Garrison History --------- Turn | Location | Event 10 | -11/Scrapyard | Discovered new exit (range 15) 91 | -11/Scrapyard | Entered Materials 329 | -10/Materials | Build established: Mutant 364 | -10/Materials | Discovered new exit (range 16) 469 | -10/Materials | Discovered new exit (range 7) 693 | -10/Materials | Discovered new exit (range 10) 831 | -10/Materials | Identified exit to Mines 864 | -10/Materials | Discovered new exit (range 16) 1263 | -10/Materials | Discovered new exit (range 16) 1613 | -10/Materials | Discovered new exit (range 8) 1624 | -10/Materials | Entered Subcaves 1625 | -10/Subcaves | Approached by a straggling Scientist 1626 | -10/Subcaves | Ambushed by Subdwellers from Twisted Machinery 1649 | -10/Subcaves | Core integrity fell below 50% 1680 | -10/Subcaves | Lost 7 parts (1p2n4w) 1803 | -10/Subcaves | Learned location of Mines (-9) 1811 | -10/Subcaves | Shifting Twisted Machinery released Sub. Power Source 1838 | -10/Subcaves | Shifting Twisted Machinery released Spk. Treads 1894 | -10/Subcaves | Discovered new exit (range 7) 1974 | -10/Subcaves | Entered Materials 1974 | -8/Materials | Evolved 4 slots: Propulsion x2, Utility x2 2288 | -8/Materials | Lost 3 parts (2n1w) 2865 | -8/Materials | Central database locked down 2891 | -8/Materials | Learned Factory security intel 2929 | -8/Materials | Learned 4 Recycling zone layouts 2959 | -8/Materials | Learned location of 1 exit from Lower Caves 2977 | -8/Materials | Learned Factory stockpile data 2986 | -8/Materials | Identified exit to Factory 3004 | -8/Materials | Learned 2 Lower Caves zone layouts 3033 | -8/Materials | Learned location of 1 exit from Extension 3124 | -8/Materials | Core integrity fell below 50% 3202 | -8/Materials | Lost 6 parts (2p2n2w) 3601 | -8/Materials | Lost 5 parts (4n1u) 3624 | -8/Materials | Garrison activated, responded to threat 3633 | -8/Materials | Core integrity fell below 20% 3804 | -8/Materials | Identified exit to Garrison 3804 | -8/Materials | Entered Garrison 3996 | -8/Garrison | Triggered checkpoint 4011 | -8/Garrison | Destroyed by G-47 Trooper with Particle Gun Last Messages --------------- 03992_ A bubble of rippling energy engulfs the area. 03992_ Field strength at 90. 03993_ Field strength at 80. 03994_ Field strength at 70. 03995_ Field strength at 60. 03996_ Beams of light sweep through the air. An alarm sounds. 03996_ C-45 Heavy ARC bursts open, deploying its payload. 03996_ B-36 Bruiser unfolds itself. 03996_ G-47 Trooper unfolds itself. 04000_ Imp. Heat Sink destroyed. 04001_ Com. Wheel destroyed. 04002_ Wheel destroyed. 04002_ System corrupted by crushing effect (+2). 04005_ B-36 Bruiser suffers critical hit (Burn). 04005_ Lgt. Armor Plating melted. 04005_ B-36 Bruiser destroyed. 04008_ Stasis field depleted. Map ----- +----------------------------------------------------+ | ????????????????????????????????????????????????? | | ????????????????????????????????????????????????? | | ????????????????????????????????????????????????? | | ????????????????????????????????????????????????? | | ????????????????????????????????????????????????? | | ????????????????????????????????????????????????? | | ????????????????????????????????????????????????? | | ????????????????????????????????????????????????? | | ????????????????????????????????????????????????? | | ????????????????????????????????????????????????? | | ?????????????????????#####??????????????????????? | | ?????????????????????# #??????????????????????? | | ?????????????######### #??????????????????????? | | ?????????????# #??????????????????????? | | ?????????????# #??????????????????????? | | ?????????????# ##########??????????????????????? | | ?????????????# #???????????????????????????????? | | ?????????????# #???????????????????????????????? | | ?????????????# #???????????????????????????????? | | ?????????????# #???????????????????????????????? | | ?????????????# #???????????????????????????????? | | ?????????????# #???????###?????????????????????? | | ?????????????# #??????? #?????????????????????? | | ?????????????# #???????# #?????????????????????? | | ?????????????# #???????# #?????????????????????? | | ??############ #???????#@#?????????????????????? | | ??#!= #???????#%/C????????????????????? | | ###=*[ #???????#* g#???????????????????? | | %%=/[######### #???????# g%C ??????????????????? | | ###=/#???????# #???????# C###?????????????????? | | #?#!%#???????# ######### ###???????????????????? | | #?#! #???????# #?????????????????????? | | #?# #???????# ###########?????????????????????? | | ??# #???????# ######??????????????????????????? | | "## ##??????# # # #??????????????????????????? | | ######## # #??????????????????????????? | | # #??????????????????????????? | | #???????????????????????????? | | ## ###############???????????????????????????? | | ?# #?????????????????????????????????????????? | | ? "?????????????????????????????????????????? | | "?????????????????????????????????????????? | | "?????????????????????????????????????????? | | "?????????????????????????????????????????? | | ## #?????????????????????????????????????????? | | ?# #?????????????????????????????????????????? | | ? ?????????????????????????????????????????? | | ?? ?????????????????????????????????????????? | | ?? #?????????????????????????????????????????? | | ?######?????????????????????????????????????????? | +----------------------------------------------------+ Best States ------------- Heat Dissipation 59 Coolant Potential 50 Energy Generation 16 Energy Capacity 290 Matter Stores 300 Matter Capacity 300 Sight Range 16 Robot Scan Range 15 Terrain Scan Range 16 Terrain Scan Density 10 Armor Coverage 150 Evasion (%) 40 Targeting Accuracy 5 Recoil Reduction 4 Offensive Hacking 10 Item Schematics ----------------- None Robot Schematics ------------------ None Fabricated ------------ Nothing Repaired ---------- Nothing Studied --------- None Alien Tech Used ----------------- None Achievements -------------- None Challenges ------------ None Game ------ Seed TachyonCentriumHammerchucker Manual? 0 Play Time 00:34:19 Cumulative 231.6 hours Start 2025.11.06 @ 21:14:58 End 2025.11.06 @ 21:53:48 Sessions 1 Manual Loads 0 Difficulty Rogue Special Mode None Game No. 185 Rogue 185 Adventurer 0 Explorer 0 Win Type - Total 6 Types 4/0/1/1/0/0/0/0/0/0 Lore% 82 Gallery% 72 Achievement% 48 Wizard Run 0 Options --------- Layout 1 ASCII 0 Keyboard 0 Movement Mouse Keybinds 0 Fullscreen 1 Font 24/Smallcaps Map View 50x35 Zoom Use 0% Tactical HUD 1 Map Filters NONE Filters NONE Steam 1 RUN: 45829335-3ff7-4a19-b351-ba9cfa3dd273